bitfinex/quotes_SOLUSD_20241220
["timestamp","ask_amount","ask_price","bid_price","bid_amount"]
[1734663008478,23.776884,199.25,199.18,35.49322624]
[1734663008676,35.49322624,199.24,199.18,35.49322624]
[1734663008844,23.776884,199.26,199.2,35.49322624]
[1734663009044,35.49322624,199.28,199.2,35.49322624]
[1734663010069,35.49322624,199.28,199.19,35.49322624]
[1734663010456,35.49322624,199.26,199.17,35.49322624]
[1734663010875,23.776884,199.25,199.17,35.49322624]
[1734663011074,23.776884,199.25,199.19,35.49322624]
[1734663012181,6.32401464,199.27,199.21,35.49322624]
[1734663012576,35.49322624,199.28,199.21,35.49322624]
[1734663012970,35.49322624,199.24,199.17,35.49322624]
[1734663013176,35.49322624,199.26,199.17,35.49322624]
[1734663013358,35.49322624,199.26,199.19,35.49322624]
[1734663014488,1.99638837,199.36,199.25,35.49322624]
[1734663014489,35.49322624,199.35,199.25,35.49322624]
[1734663014647,35.49322624,199.35,199.28,35.49322624]
[1734663015965,35.49322624,199.32,199.25,35.49322624]
[1734663016166,35.49322624,199.32,199.24,20.0]
[1734663016167,35.49322624,199.32,199.24,55.49322624]
[1734663016784,35.49322624,199.31,199.23,35.49322624]
[1734663016996,35.49322624,199.29,199.22,35.49322624]
[1734663017162,35.49322624,199.31,199.24,35.49322624]
[1734663017360,35.49322624,199.33,199.26,35.49322624]
[1734663017559,35.49322624,199.34,199.27,35.49322624]
[1734663017782,0.12236576,199.39,199.29,35.49322624]
[1734663017992,35.49322624,199.38,199.31,35.49322624]
[1734663019185,0.12236576,199.39,199.35,35.49322624]
[1734663019394,0.12236576,199.39,199.34,35.49322624]
[1734663019964,0.12236576,199.39,199.35,35.49322624]
[1734663020164,0.12236576,199.39,199.33,35.49322624]
[1734663020485,0.12236576,199.39,199.32,35.49322624]
[1734663020666,0.12236576,199.39,199.33,35.49322624]
[1734663020869,0.12236576,199.39,199.34,35.49322624]
[1734663021393,0.12236576,199.39,199.33,35.49322624]
[1734663022487,0.12236576,199.39,199.34,35.49322624]
[1734663022892,0.12236576,199.39,199.35,35.49322624]
[1734663023077,0.12236576,199.39,199.34,35.49322624]
[1734663023280,0.12236576,199.39,199.35,35.49322624]
[1734663023482,0.12236576,199.39,199.33,35.49322624]
[1734663023801,0.12236576,199.39,199.38,35.49322624]
[1734663025398,8.9296,199.49,199.48,20.0]
[1734663025399,0.157,199.49,199.48,20.0]
[1734663025704,0.157,199.49,199.48,55.49322624]
[1734663026198,0.157,199.49,199.48,79.27011024]
[1734663026502,0.157,199.49,199.48,80.02178258]
[1734663026705,0.157,199.49,199.48,56.24489858]
[1734663027172,0.157,199.49,199.48,91.73812482]
[1734663027379,0.157,199.49,199.48,114.76333648]
[1734663027599,0.74448811,199.55,199.49,6.1446]
[1734663027803,0.74448811,199.55,199.52,55.49322624]
[1734663028307,0.74448811,199.55,199.52,20.0]
[1734663028477,0.74448811,199.55,199.49,41.63782624]
[1734663028678,0.74448811,199.55,199.52,35.49322624]
[1734663030314,0.74448811,199.55,199.52,36.24485686]
[1734663030479,0.74448811,199.55,199.52,35.49322624]
[1734663031580,0.74448811,199.55,199.52,36.24481547]
[1734663032182,0.74448811,199.55,199.52,60.02169947]
[1734663032586,0.74448811,199.55,199.54,55.49322624]
[1734663032791,0.74448811,199.55,199.54,80.02148992]
[1734663033312,0.74448811,199.55,199.54,56.24460592]
[1734663034326,15.0,199.69,199.54,82.65258992]
[1734663034618,15.0,199.69,199.68,35.49322624]
[1734663035289,15.0,199.69,199.61,0.75115442]
[1734663035512,35.49322624,199.67,199.59,35.49322624]
[1734663035687,50.49322624,199.69,199.59,35.49322624]
[1734663035886,50.49322624,199.69,199.61,35.49322624]
[1734663037308,35.49322624,199.67,199.59,35.49322624]
[1734663037607,35.49322624,199.61,199.53,35.49322624]
[1734663037804,35.49322624,199.59,199.51,35.49322624]
[1734663038004,35.49322624,199.59,199.49,35.49322624]
[1734663038410,35.49322624,199.57,199.49,35.49322624]
[1734663041506,35.49322624,199.59,199.51,35.49322624]
[1734663041914,8.7676,199.6,199.49,35.49322624]
[1734663041915,35.49322624,199.57,199.49,35.49322624]
[1734663042597,35.49322624,199.56,199.49,35.49322624]
[1734663042924,35.49322624,199.55,199.47,35.49322624]
[1734663043091,35.49322624,199.56,199.48,35.49322624]
[1734663043291,35.49322624,199.56,199.49,35.49322624]
[1734663044217,35.49322624,199.56,199.4,36.2451171]
[1734663044218,35.49322624,199.56,199.48,35.49322624]
[1734663047313,35.49322624,199.54,199.46,35.49322624]
[1734663047515,8.7697,199.55,199.48,35.49322624]
[1734663048021,44.26292624,199.55,199.48,35.49322624]
[1734663048616,35.49322624,199.56,199.48,35.49322624]
[1734663049230,35.49322624,199.54,199.47,35.49322624]
[1734663049549,26.3038,199.59,199.39,6.653]
[1734663049550,35.49322624,199.49,199.42,35.49322624]
[1734663049816,8.7662,199.63,199.47,35.49322624]
[1734663050011,17.435,199.69,199.59,35.49322624]
[1734663050012,35.49322624,199.68,199.59,35.49322624]
[1734663050319,15.0,199.69,199.63,35.49322624]
[1734663050490,35.49322624,199.66,199.53,6.2878]
[1734663050697,8.7653,199.65,199.57,35.49322624]
[1734663050893,35.49322624,199.64,199.55,35.49322624]
[1734663051108,21.71479986,199.63,199.55,21.71479986]
[1734663051501,21.71479986,199.63,199.53,21.71479986]
[1734663051895,21.71479986,199.61,199.53,21.71479986]
[1734663053121,8.7675,199.6,199.53,21.71479986]
[1734663054493,8.766,199.64,199.57,21.71479986]
[1734663054694,21.71479986,199.67,199.59,21.71479986]
[1734663054912,21.71479986,199.65,199.57,21.71479986]
[1734663057233,30.48049986,199.65,199.57,21.71479986]
[1734663057724,30.48049986,199.65,199.55,21.71479986]
[1734663058029,21.71479986,199.63,199.55,21.71479986]
[1734663058190,23.7636,199.69,199.61,21.71479986]
[1734663058395,15.0,199.69,199.65,21.71479986]
[1734663059203,15.0,199.69,199.67,21.71479986]
[1734663065602,36.71479986,199.69,199.57,2.4167]
[1734663065802,36.71479986,199.69,199.61,21.71479986]
[1734663066110,36.71479986,199.69,199.57,3.16813669]
[1734663066111,15.0,199.69,199.63,21.71479986]
[1734663066629,36.71479986,199.69,199.61,21.71479986]
[1734663066921,15.0,199.69,199.63,21.71479986]
[1734663067124,15.0,199.69,199.51,3.21766501]
[1734663067125,36.71479986,199.69,199.57,0.75130444]
[1734663067333,21.71479986,199.67,199.59,21.71479986]
[1734663067722,21.71479986,199.63,199.52,0.75130444]
[1734663067913,21.71479986,199.63,199.55,21.71479986]
[1734663068229,21.71479986,199.63,199.49,6.5701]
[1734663068230,21.71479986,199.61,199.53,21.71479986]
[1734663068403,21.71479986,199.63,199.55,21.71479986]
[1734663069625,15.0,199.69,199.62,21.71479986]
[1734663069835,15.0,199.69,199.66,21.71479986]
[1734663070235,15.0,199.69,199.68,21.71479986]
[1734663072429,15.0,199.69,199.66,21.71479986]
[1734663072631,21.71479986,199.67,199.54,0.75113536]
[1734663072836,21.71479986,199.58,199.49,21.71479986]
[1734663073330,21.71479986,199.55,199.47,21.71479986]
[1734663073914,21.71479986,199.53,199.45,21.71479986]
[1734663074114,21.71479986,199.6,199.43,28.11479986]
[1734663074115,21.71479986,199.51,199.43,28.11479986]
[1734663074407,21.71479986,199.6,199.41,2.5208]
[1734663074408,21.71479986,199.49,199.41,24.23559986]
[1734663074629,21.71479986,199.49,199.36,6.5036]
[1734663074630,21.71479986,199.47,199.39,21.71479986]
[1734663075023,35.33866873,199.47,199.39,35.33866873]
[1734663075920,8.771,199.53,199.36,41.84226873]
[1734663075921,35.33866873,199.44,199.36,41.84226873]
[1734663076445,35.33866873,199.43,199.36,41.84226873]
[1734663076615,35.33866873,199.44,199.36,41.84226873]
[1734663077017,8.771,199.53,199.4,35.33866873]
[1734663077209,35.33866873,199.48,199.4,35.33866873]
[1734663077428,35.33866873,199.5,199.42,35.33866873]
[1734663077744,35.33866873,199.51,199.44,35.33866873]
[1734663077936,35.33866873,199.5,199.43,35.33866873]
[1734663078457,35.33866873,199.51,199.43,35.33866873]
[1734663078640,35.33866873,199.5,199.43,35.33866873]
[1734663078823,35.33866873,199.51,199.44,35.33866873]
[1734663079148,35.33866873,199.53,199.46,35.33866873]
[1734663079640,35.33866873,199.52,199.44,55.33866873]
[1734663080228,35.33866873,199.49,199.42,35.33866873]
[1734663080547,35.33866873,199.5,199.43,35.33866873]
[1734663080725,35.33866873,199.49,199.42,35.33866873]
[1734663081316,35.33866873,199.52,199.45,35.33866873]
[1734663081518,35.33866873,199.48,199.41,35.33866873]
[1734663081752,8.7695,199.56,199.39,20.0]
[1734663081753,35.33866873,199.44,199.39,20.0]
[1734663081941,35.33866873,199.44,199.35,0.75207983]
[1734663082117,35.33866873,199.43,199.36,41.84226873]
[1734663082520,35.33866873,199.6,199.36,41.84226873]
[1734663082521,8.7673,199.61,199.42,35.33866873]
[1734663082729,35.33866873,199.55,199.47,35.33866873]
[1734663083129,35.33866873,199.56,199.49,35.33866873]
[1734663083322,35.33866873,199.57,199.5,35.33866873]
[1734663083633,35.33866873,199.59,199.52,35.33866873]
[1734663083952,35.33866873,199.61,199.54,55.33866873]
[1734663084152,35.33866873,199.63,199.56,35.33866873]
[1734663084342,35.33866873,199.6,199.54,20.0]
[1734663085055,35.33866873,199.6,199.53,35.33866873]
[1734663085535,35.33866873,199.58,199.51,41.51346873]
[1734663086156,35.33866873,199.59,199.52,35.33866873]
[1734663086332,8.765,199.66,199.51,41.51346873]
[1734663086333,35.33866873,199.58,199.51,41.51346873]
[1734663086536,35.33866873,199.57,199.51,6.1748]
[1734663086755,35.33866873,199.57,199.49,35.33866873]
[1734663086936,35.33866873,199.56,199.49,35.33866873]
[1734663087727,8.7665,199.63,199.47,0.75156555]
[1734663087935,35.33866873,199.55,199.47,35.33866873]
[1734663088526,35.33866873,199.55,199.48,35.33866873]
[1734663088728,35.33866873,199.53,199.46,38.72199727]
[1734663088925,35.33866873,199.53,199.46,35.33866873]
[1734663089133,8.768,199.59,199.45,6.6209]
[1734663089134,35.33866873,199.51,199.45,6.6209]
[1734663089331,35.33866873,199.5,199.45,6.6209]
[1734663089640,35.33866873,199.51,199.43,35.33866873]
[1734663089837,35.33866873,199.51,199.39,8.8139]
[1734663089838,35.33866873,199.53,199.45,35.33866873]
[1734663090020,35.33866873,199.53,199.46,35.33866873]
[1734663090224,35.33866873,199.57,199.49,35.33866873]
[1734663090453,35.33866873,199.57,199.5,35.33866873]
[1734663090651,35.33866873,199.57,199.49,35.33866873]
[1734663091061,35.33866873,199.59,199.51,35.33866873]
[1734663091262,35.33866873,199.58,199.51,35.33866873]
[1734663091566,8.7665,199.63,199.48,35.33866873]
[1734663091567,35.33866873,199.56,199.48,35.33866873]
[1734663091725,35.33866873,199.54,199.47,35.33866873]
[1734663092260,35.33866873,199.55,199.48,35.33866873]
[1734663092944,35.33866873,199.55,199.47,35.33866873]
[1734663093146,35.33866873,199.52,199.45,35.33866873]
[1734663093350,35.33866873,199.51,199.44,35.33866873]
[1734663093550,35.33866873,199.5,199.43,35.33866873]
[1734663093739,35.33866873,199.53,199.45,35.33866873]
[1734663093942,35.33866873,199.55,199.48,35.33866873]
[1734663094162,35.33866873,199.59,199.52,35.33866873]
[1734663094328,35.33866873,199.6,199.53,35.33866873]
[1734663094531,35.33866873,199.58,199.51,35.33866873]
[1734663094738,35.33866873,199.59,199.51,35.33866873]
[1734663094939,35.33866873,199.57,199.5,35.33866873]
[1734663095143,35.33866873,199.56,199.49,35.33866873]
[1734663095346,35.33866873,199.62,199.54,35.33866873]
[1734663095858,35.33866873,199.58,199.51,35.33866873]
[1734663096740,35.33866873,199.57,199.49,35.33866873]
[1734663096944,21.72769159,199.57,199.49,21.72769159]
[1734663097130,21.72769159,199.56,199.49,21.72769159]
[1734663097754,21.72769159,199.58,199.5,21.72769159]
[1734663098049,21.72769159,199.55,199.48,21.72769159]
[1734663098440,21.72769159,199.56,199.48,21.72769159]
[1734663098836,21.72769159,199.55,199.48,21.72769159]
[1734663099029,21.72769159,199.56,199.48,21.72769159]
[1734663099253,21.72769159,199.57,199.49,21.72769159]
[1734663099972,21.72769159,199.56,199.49,21.72769159]
[1734663100149,21.72769159,199.55,199.5,20.0]
[1734663100644,21.72769159,199.54,199.47,21.72769159]
[1734663100870,21.72769159,199.55,199.47,21.72769159]
[1734663101035,21.72769159,199.58,199.5,21.72769159]
[1734663101235,21.72769159,199.58,199.51,21.72769159]
[1734663101444,21.72769159,199.55,199.48,21.72769159]
[1734663101781,21.72769159,199.57,199.49,21.72769159]
[1734663102141,21.72769159,199.55,199.47,21.72769159]
[1734663102341,21.72769159,199.53,199.46,21.72769159]
[1734663102773,21.72769159,199.52,199.45,21.72769159]
[1734663103131,21.72769159,199.48,199.41,21.72769159]
[1734663103338,21.72769159,199.44,199.37,21.72769159]
[1734663103567,21.72769159,199.43,199.36,21.72769159]
[1734663104133,21.72769159,199.4,199.33,21.72769159]
[1734663104339,21.72769159,199.38,199.31,21.72769159]
[1734663104870,21.72769159,199.37,199.3,21.72769159]
[1734663105036,21.72769159,199.36,199.29,28.12769159]
[1734663105238,21.72769159,199.33,199.27,21.72769159]
[1734663105436,21.72769159,199.33,199.26,21.72769159]
[1734663105635,21.72769159,199.32,199.25,21.72769159]
[1734663105848,21.72769159,199.34,199.27,21.72769159]
[1734663106047,21.72769159,199.33,199.26,21.72769159]
[1734663106474,21.72769159,199.4,199.27,21.72769159]
[1734663106475,21.72769159,199.34,199.27,21.72769159]
[1734663107189,21.72769159,199.37,199.3,21.72769159]
[1734663107858,21.72769159,199.35,199.28,21.72769159]
[1734663108073,21.72769159,199.34,199.27,21.72769159]
[1734663108579,30.50399159,199.4,199.22,7.15255064]
[1734663108580,21.72769159,199.33,199.26,21.72769159]
[1734663108881,21.72769159,199.34,199.27,21.72769159]
[1734663109065,21.72769159,199.35,199.28,21.72769159]
[1734663109265,21.72769159,199.36,199.29,21.72769159]
[1734663109887,21.72769159,199.35,199.28,21.72769159]
[1734663110090,21.72769159,199.34,199.27,21.72769159]
[1734663110390,21.72769159,199.33,199.26,21.72769159]
[1734663110891,21.72769159,199.32,199.25,21.72769159]
[1734663111067,21.72769159,199.31,199.24,21.72769159]
[1734663112170,21.72769159,199.32,199.25,21.72769159]
[1734663112372,21.72769159,199.37,199.3,21.72769159]
[1734663112572,21.72769159,199.39,199.32,21.72769159]
[1734663113088,6.4338,199.46,199.33,21.72769159]
[1734663113089,21.72769159,199.4,199.33,21.72769159]
[1734663113305,21.72769159,199.41,199.34,21.72769159]
[1734663113511,11.3193,199.45,199.33,21.72769159]
[1734663113512,21.72769159,199.4,199.33,21.72769159]
[1734663113810,21.72769159,199.38,199.31,21.72769159]
[1734663114600,21.72769159,199.37,199.3,21.72769159]
[1734663114979,21.72769159,199.36,199.29,21.72769159]
[1734663115174,21.72769159,199.36,199.25,20.7525822]
[1734663115381,21.72769159,199.37,199.3,21.72769159]
[1734663116204,8.7756,199.42,199.25,20.7525822]
[1734663116205,21.72769159,199.35,199.28,21.72769159]
[1734663116500,21.72769159,199.4,199.26,21.72769159]
[1734663116501,21.72769159,199.33,199.26,21.72769159]
[1734663117278,21.72769159,199.36,199.29,21.72769159]
[1734663117488,21.72769159,199.32,199.25,21.72769159]
[1734663117698,21.72769159,199.31,199.24,21.72769159]
[1734663117999,21.72769159,199.3,199.23,21.72769159]
[1734663119497,21.72769159,199.31,199.23,21.72769159]
[1734663119681,21.72769159,199.3,199.23,21.72769159]
[1734663120908,21.72769159,199.33,199.26,21.72769159]
[1734663121085,21.72769159,199.35,199.28,21.72769159]
[1734663121279,21.72769159,199.35,199.22,7.15279414]
[1734663121280,21.72769159,199.36,199.29,21.72769159]
[1734663121682,21.72769159,199.37,199.3,21.72769159]
[1734663124996,21.72769159,199.31,199.22,28.12769159]
[1734663125174,21.72769159,199.29,199.22,28.12769159]
[1734663125375,21.72769159,199.29,199.22,21.72769159]
[1734663125575,21.72769159,199.28,199.21,21.72769159]
[1734663125801,21.72769159,199.27,199.2,21.72769159]
[1734663125978,21.72769159,199.3,199.23,21.72769159]
[1734663126379,21.72769159,199.35,199.28,21.72769159]
[1734663126785,21.72769159,199.36,199.29,21.72769159]
[1734663127076,21.72769159,199.41,199.34,21.72769159]
[1734663127276,21.72769159,199.44,199.37,21.72769159]
[1734663127590,21.72769159,199.46,199.39,21.72769159]
[1734663127784,8.7729,199.48,199.29,0.75220598]
[1734663128408,8.7729,199.48,199.3,43.776884]
[1734663128595,11.86241898,199.48,199.28,20.75226194]
[1734663129004,21.72769159,199.39,199.32,21.72769159]
[1734663129396,21.72769159,199.42,199.35,21.72769159]
[1734663129698,8.7729,199.48,199.39,21.72769159]
[1734663129885,2.01298481,199.49,199.34,0.75220663]
[1734663130085,21.72769159,199.48,199.42,21.72769159]
[1734663130285,21.72769159,199.47,199.4,21.72769159]
[1734663131607,21.72769159,199.44,199.37,21.72769159]
[1734663131797,21.72769159,199.44,199.38,21.72769159]
[1734663132416,21.72769159,199.43,199.36,21.72769159]
[1734663133109,21.72769159,199.41,199.35,28.16929159]
[1734663133291,21.72769159,199.41,199.34,21.72769159]
[1734663133714,21.72769159,199.4,199.34,21.72769159]
[1734663133914,21.72769159,199.41,199.34,21.72769159]
[1734663134419,21.72769159,199.44,199.36,21.72769159]
[1734663134623,8.7739,199.46,199.3,21.72769159]
[1734663134624,21.72769159,199.45,199.38,21.72769159]
[1734663134822,21.72769159,199.4,199.33,41.72769159]
[1734663135031,21.72769159,199.4,199.33,21.72769159]
[1734663135212,21.72769159,199.38,199.31,21.72769159]
[1734663137111,21.72769159,199.35,199.28,21.72769159]
[1734663137321,21.72769159,199.34,199.26,21.72769159]
[1734663137522,21.72769159,199.34,199.24,6.1748]
[1734663137523,21.72769159,199.34,199.27,21.72769159]
[1734663137722,21.72769159,199.32,199.25,21.72769159]
[1734663137922,21.72769159,199.3,199.23,21.72769159]
[1734663138321,21.72769159,199.32,199.25,21.72769159]
[1734663138618,21.72769159,199.38,199.31,21.72769159]
[1734663139022,21.72769159,199.4,199.33,21.72769159]
[1734663139325,21.72769159,199.41,199.34,21.72769159]
[1734663139656,21.72769159,199.42,199.35,21.72769159]
[1734663139925,21.72769159,199.44,199.37,21.72769159]
[1734663140128,21.72769159,199.44,199.31,6.83036605]
[1734663140129,21.72769159,199.47,199.39,21.72769159]
[1734663140422,6.2137,199.51,199.31,9.27416605]
[1734663140423,21.72769159,199.48,199.41,21.72769159]
[1734663141107,21.72769159,199.46,199.39,21.72769159]
[1734663141427,8.7719,199.5,199.4,21.72769159]
[1734663141428,21.72769159,199.47,199.4,21.72769159]
[1734663142101,21.72769159,199.48,199.41,21.72769159]
[1734663142326,21.72769159,199.5,199.43,21.72769159]
[1734663142826,21.72769159,199.49,199.42,21.72769159]
[1734663143134,21.72769159,199.48,199.41,21.72769159]
[1734663143333,21.72769159,199.47,199.4,21.72769159]
[1734663144538,21.72769159,199.48,199.41,21.72769159]
[1734663144836,8.7701,199.54,199.4,21.72769159]
[1734663144837,21.72769159,199.47,199.4,21.72769159]
[1734663145739,21.72769159,199.46,199.39,21.72769159]
[1734663147114,21.72769159,199.43,199.36,21.72769159]
[1734663147441,21.72769159,199.42,199.35,21.72769159]
[1734663148031,21.72769159,199.43,199.36,21.72769159]
[1734663148645,21.72769159,199.41,199.35,21.72769159]
[1734663149148,8.7736,199.46,199.38,21.72769159]
[1734663149336,8.7736,199.46,199.31,8.5218]
[1734663149337,20.062891,199.62,199.44,21.72769159]
[1734663149649,21.72769159,199.54,199.47,21.72769159]
[1734663149824,11.2426,199.58,199.43,9.40446979]
[1734663150007,21.72769159,199.53,199.43,8.6526]
[1734663150208,21.72769159,199.51,199.44,21.72769159]
[1734663150972,21.72769159,199.49,199.42,21.72769159]
[1734663151131,21.72769159,199.46,199.39,21.72769159]
[1734663151329,21.72769159,199.4,199.32,6.1123]
[1734663151635,20.0,199.43,199.27,6.1123]
[1734663151947,23.776884,199.42,199.27,6.1123]
[1734663152154,21.72769159,199.37,199.3,21.72769159]
[1734663152871,21.72769159,199.42,199.35,21.72769159]
[1734663153354,21.72769159,199.41,199.34,21.72769159]
[1734663153949,21.72769159,199.38,199.31,21.72769159]
[1734663154145,21.72769159,199.41,199.34,21.72769159]
[1734663154770,21.72769159,199.44,199.37,21.72769159]
[1734663155452,21.72769159,199.43,199.36,21.72769159]
[1734663156136,8.7728,199.48,199.35,21.72769159]
[1734663156137,21.72769159,199.42,199.35,21.72769159]
[1734663156427,21.72769159,199.41,199.34,21.72769159]
[1734663157052,21.72769159,199.4,199.34,21.72769159]
[1734663157346,21.72769159,199.39,199.32,21.72769159]
[1734663157662,21.72769159,199.36,199.29,21.72769159]
[1734663159267,21.72769159,199.38,199.31,21.72769159]
[1734663159470,21.72769159,199.37,199.31,21.72769159]
[1734663160075,23.776884,199.31,199.18,6.1776]
[1734663160372,23.776884,199.31,199.16,2.6356]
[1734663160373,21.72769159,199.21,199.16,2.6356]
[1734663160552,21.72769159,199.2,199.16,2.6356]
[1734663161360,21.72769159,199.23,199.16,24.36329159]
[1734663163167,21.72769159,199.23,199.16,2.6356]
[1734663163476,21.72769159,199.19,199.13,6.1776]
[1734663164269,21.72769159,199.27,199.18,21.72769159]
[1734663164570,21.72769159,199.29,199.22,21.72769159]
[1734663164953,21.72769159,199.27,199.21,21.72769159]
[1734663165470,21.72769159,199.24,199.17,21.72769159]
[1734663166574,21.72769159,199.23,199.16,21.72769159]
[1734663166777,21.72769159,199.22,199.13,6.1776]
[1734663166954,21.72769159,199.22,199.15,21.72769159]
[1734663168376,21.72769159,199.2,199.13,27.90529159]
[1734663169461,21.72769159,199.22,199.15,21.72769159]
[1734663169775,21.72769159,199.3,199.15,21.72769159]
[1734663169776,21.72769159,199.29,199.21,21.72769159]
[1734663169957,21.72769159,199.3,199.23,21.72769159]
[1734663170159,21.72769159,199.3,199.15,0.75307069]
[1734663170160,21.72769159,199.3,199.24,21.72769159]
[1734663170969,21.72769159,199.3,199.23,21.72769159]
[1734663171172,21.72769159,199.33,199.26,21.72769159]
[1734663171347,14.9357,199.38,199.27,21.72769159]
[1734663171348,21.72769159,199.34,199.27,21.72769159]
[1734663172081,21.72769159,199.35,199.28,21.72769159]
[1734663172374,8.7775,199.38,199.27,21.72769159]
[1734663172375,21.72769159,199.34,199.27,21.72769159]
[1734663172582,8.7775,199.38,199.31,21.72769159]
[1734663172583,21.72769159,199.38,199.31,21.72769159]
[1734663172743,21.72769159,199.35,199.28,0.75259724]
[1734663172943,1.98408929,199.41,199.25,6.601]
[1734663173171,26.3265,199.42,199.25,6.601]
[1734663173774,23.776884,199.41,199.22,2.4634]
[1734663173984,23.776884,199.37,199.22,2.4634]
[1734663174272,21.72769159,199.27,199.2,6.601]
[1734663174573,21.72769159,199.27,199.2,28.32869159]
[1734663174749,21.72769159,199.27,199.21,21.72769159]
[1734663174944,21.72769159,199.26,199.2,6.601]
[1734663175145,21.72769159,199.25,199.2,6.601]
[1734663175340,21.72769159,199.26,199.2,6.601]
[1734663175947,21.72769159,199.25,199.18,21.72769159]
[1734663176153,21.72769159,199.24,199.18,20.0]
[1734663176467,21.72769159,199.25,199.18,41.72769159]
[1734663176680,21.72769159,199.26,199.19,21.72769159]
[1734663180970,21.72769159,199.24,199.17,24.19109159]
[1734663181386,21.72769159,199.25,199.17,24.19109159]
[1734663181853,21.72769159,199.24,199.17,24.19109159]
[1734663182250,21.72769159,199.24,199.17,2.4634]
[1734663182580,21.72769159,199.24,199.17,24.19109159]
[1734663182950,21.72769159,199.24,199.15,6.4109]
[1734663182951,21.72769159,199.2,199.15,6.4109]
[1734663183274,23.776884,199.28,199.09,2.4889]
[1734663183275,21.72769159,199.17,199.1,28.12229159]
[1734663183474,21.72769159,199.16,199.1,6.3946]
[1734663183683,21.72769159,199.15,199.1,6.3946]
[1734663183977,21.72769159,199.2,199.06,21.72769159]
[1734663184180,21.72769159,199.14,199.07,21.72769159]
[1734663185388,21.72769159,199.12,199.05,28.92129869]
[1734663187051,21.72769159,199.1,199.05,7.1936071]
[1734663187254,21.72769159,199.1,199.05,0.6218071]
[1734663188282,3.05911431,199.21,199.09,21.72769159]
[1734663188509,21.72769159,199.18,199.11,21.72769159]
[1734663189114,21.72769159,199.19,199.12,21.72769159]
[1734663189417,21.72769159,199.22,199.15,21.72769159]
[1734663190019,21.72769159,199.23,199.16,21.72769159]
[1734663190515,21.72769159,199.25,199.19,21.72769159]
[1734663191288,21.72769159,199.28,199.21,21.72769159]
[1734663191487,21.72769159,199.29,199.22,21.72769159]
[1734663191683,21.72769159,199.31,199.24,21.72769159]
[1734663192232,8.7782,199.36,199.23,24.20510107]
[1734663192233,24.20510107,199.3,199.23,24.20510107]
[1734663192987,24.20510107,199.29,199.22,24.20510107]
[1734663194305,24.20510107,199.28,199.21,24.20510107]
[1734663194506,8.7795,199.33,199.17,0.75268018]
[1734663194507,24.20510107,199.27,199.2,24.20510107]
[1734663194702,24.20510107,199.27,199.21,24.20510107]
[1734663195089,24.20510107,199.28,199.21,24.20510107]
[1734663195416,24.20510107,199.27,199.21,24.20510107]
[1734663195610,24.20510107,199.27,199.2,24.20510107]
[1734663196222,24.20510107,199.25,199.18,24.20510107]
[1734663196699,24.20510107,199.24,199.17,24.20510107]
[1734663196890,24.20510107,199.23,199.16,26.80310107]
[1734663197101,24.20510107,199.24,199.17,24.20510107]
[1734663197306,24.20510107,199.24,199.18,24.20510107]
[1734663198018,24.20510107,199.25,199.18,24.20510107]
[1734663198318,24.20510107,199.24,199.18,24.20510107]
[1734663198519,24.20510107,199.23,199.16,26.80310107]
[1734663198826,24.20510107,199.22,199.16,2.598]
[1734663199198,24.20510107,199.22,199.16,26.80310107]
[1734663200122,24.20510107,199.24,199.16,2.598]
[1734663200332,24.20510107,199.27,199.2,24.20510107]
[1734663200494,24.20510107,199.29,199.23,24.20510107]
[1734663201110,24.20510107,199.33,199.26,24.20510107]
[1734663201314,24.20510107,199.33,199.27,24.20510107]
[1734663201515,24.20510107,199.29,199.22,24.20510107]
[1734663201721,24.20510107,199.28,199.22,24.20510107]
[1734663202535,24.20510107,199.26,199.19,30.77390107]
[1734663202894,8.7804,199.31,199.19,30.77390107]
[1734663203097,24.20510107,199.25,199.19,30.77390107]
[1734663203301,24.20510107,199.24,199.19,6.5688]
[1734663203514,24.20510107,199.22,199.15,24.20510107]
[1734663203716,24.20510107,199.22,199.16,24.20510107]
[1734663203910,24.20510107,199.23,199.16,24.20510107]
[1734663204113,24.20510107,199.23,199.17,24.20510107]
[1734663204331,24.20510107,199.25,199.18,24.20510107]
[1734663204641,24.20510107,199.27,199.2,24.20510107]
[1734663204842,24.20510107,199.27,199.21,24.20510107]
[1734663205012,24.20510107,199.29,199.22,24.20510107]
[1734663205216,8.7805,199.31,199.18,0.7529045]
[1734663205217,24.20510107,199.31,199.25,24.20510107]
[1734663205548,24.20510107,199.33,199.26,24.20510107]
[1734663205735,24.20510107,199.36,199.29,24.20510107]
[1734663206040,24.20510107,199.36,199.3,24.20510107]
[1734663206728,24.20510107,199.34,199.27,24.20510107]
[1734663206929,24.20510107,199.35,199.28,24.20510107]
[1734663207268,24.20510107,199.36,199.29,24.20510107]
[1734663207438,24.20510107,199.34,199.27,44.20510107]
[1734663207606,20.0,199.36,199.22,1.5567]
[1734663208009,20.0,199.36,199.19,6.2518]
[1734663208645,24.20510107,199.26,199.19,30.45690107]
[1734663209119,24.20510107,199.24,199.19,6.2518]